bitfinex-derivatives/quotes_ETHF0:USTF0_20250212
["timestamp","ask_amount","ask_price","bid_price","bid_amount"]
[1739390068539,0.7462,2680.2,2680.1,0.74619]
[1739390068844,0.57539994,2680.4,2680.2,0.74617]
[1739390069044,0.74618,2680.2,2680.1,3.95399]
[1739390069944,0.74618,2680.2,2680.1,3.2078]
[1739390070544,0.7462,2680.1,2680.0,0.74623]
[1739390070837,0.74619,2680.2,2680.1,0.74619]
[1739390071041,0.74619,2680.2,2680.1,3.2078]
[1739390071433,0.57539994,2680.4,2680.1,3.2078]
[1739390071635,3.01351994,2680.4,2680.3,0.74615]
[1739390071842,1.69759994,2680.4,2680.3,0.74615]
[1739390072143,0.00559994,2680.4,2680.3,0.74615]
[1739390073046,1.692,2681.3,2680.9,3.28777369]
[1739390073242,0.7459,2681.2,2681.1,0.7459]
[1739390074145,0.00559994,2681.4,2681.0,3.2078]
[1739390074443,0.00559994,2681.4,2680.6,7.63317369]
[1739390074641,0.74597,2681.0,2680.8,0.74598]
[1739390074840,3.21339994,2681.4,2680.8,0.74598]
[1739390075036,0.74601,2680.8,2680.7,0.74602]
[1739390075238,0.74604,2680.7,2680.6,3.2078]
[1739390075438,0.74604,2680.7,2680.6,3.95386]
[1739390076341,0.578,2680.9,2680.6,3.2078]
[1739390076539,0.74602,2680.8,2680.7,0.74602]
[1739390076741,1.692,2681.0,2680.9,0.74598]
[1739390077137,2.43795,2681.0,2680.9,0.74598]
[1739390077446,2.43795,2681.0,2680.8,0.74599]
[1739390077447,0.74599,2680.9,2680.8,0.74599]
[1739390078349,2.43797,2681.0,2680.9,0.74598]
[1739390078645,0.74599,2680.9,2680.8,0.74599]
[1739390079046,1.692,2681.0,2680.7,0.5711]
[1739390079350,0.578,2681.3,2680.9,3.2078]
[1739390079545,0.74591,2681.2,2681.1,0.7459]
[1739390079750,0.578,2681.3,2681.0,0.6]
[1739390080047,0.74589,2681.3,2681.2,0.7459]
[1739390080437,0.74591,2681.2,2681.0,0.6]
[1739390080643,0.74591,2681.2,2681.1,0.7459]
[1739390081451,1.69759994,2681.4,2681.0,0.6]
[1739390081748,1.69759994,2681.4,2680.7,0.5711]
[1739390081942,0.746,2680.9,2680.8,0.74599]
[1739390083447,0.00559994,2681.4,2681.3,0.74587]
[1739390083747,0.00559994,2681.4,2681.3,7.24144369]
[1739390086054,0.00559994,2681.4,2681.3,3.95367]
[1739390086349,0.74592,2681.2,2681.1,0.74591]
[1739390086848,1.1023,2681.3,2681.0,3.2078]
[1739390087147,0.74593,2681.1,2681.0,3.95374]
[1739390087352,0.74592,2681.2,2681.1,0.74591]
[1739390087546,0.7459,2681.2,2681.1,0.74591]
[1739390087855,0.5543,2681.3,2681.2,0.7459]
[1739390089052,1.30017,2681.3,2681.2,0.7459]
[1739390089849,0.5543,2681.3,2681.0,3.2078]
[1739390090049,0.74591,2681.2,2681.1,0.7459]
[1739390091154,0.5543,2681.3,2681.0,3.2078]
[1739390091355,0.74592,2681.1,2681.0,3.95374]
[1739390091852,0.74592,2681.1,2681.0,3.2078]
[1739390092246,0.74592,2681.1,2681.0,3.95375]
[1739390092850,0.74592,2681.1,2681.0,3.2078]
[1739390093557,0.74592,2681.1,2681.0,3.95375]
[1739390094053,0.74592,2681.1,2681.0,3.2078]
[1739390095047,0.74592,2681.1,2681.0,3.95375]
[1739390095849,0.74592,2681.1,2681.0,3.2078]
[1739390096057,0.74592,2681.1,2681.0,3.95375]
[1739390098355,0.74592,2681.1,2681.0,3.2078]
[1739390099752,0.74592,2681.1,2681.0,3.95375]
[1739390100456,0.74592,2681.1,2681.0,3.2078]
[1739390100650,0.74592,2681.1,2681.0,3.95375]
[1739390101055,0.74591,2681.2,2681.1,0.7459]
[1739390102359,0.74593,2681.1,2681.0,3.95374]
[1739390102665,0.74593,2681.1,2681.0,3.2078]
[1739390102952,1.8647,2681.3,2680.9,0.74596]
[1739390103161,1.29705,2681.0,2680.9,0.74596]
[1739390104561,0.74601,2680.9,2680.8,0.74598]
[1739390105152,0.5511,2681.0,2680.7,1.1001]
[1739390105356,0.74604,2680.7,2680.6,3.2078]
[1739390108449,0.74613,2680.4,2680.3,0.74612]
[1739390108759,5.07286,2680.8,2680.1,3.2078]
[1739390109065,0.74617,2680.3,2680.2,0.74615]
[1739390109452,6.0,2680.3,2679.9,0.00559994]
[1739390109653,6.49557369,2680.0,2678.4,3.2078]
[1739390109960,0.74656,2678.9,2678.4,0.74665]
[1739390110163,1.721,2679.0,2678.2,1.177]
[1739390110461,3.28777369,2678.9,2678.2,1.177]
[1739390110759,6.49557369,2678.9,2678.3,0.00559994]
[1739390111057,0.74666,2678.5,2678.3,0.00559994]
[1739390112160,0.74668,2678.4,2678.3,0.00559994]
[1739390114261,0.74661,2678.7,2678.4,0.74666]
[1739390114561,0.74661,2678.7,2678.3,0.00559994]
[1739390114562,0.74668,2678.4,2678.3,0.00559994]
[1739390117263,2.47068,2678.4,2678.3,0.00559994]
[1739390119165,6.30214231,2678.4,2678.3,0.00559994]
[1739390119370,6.36487264,2678.4,2678.3,0.00559994]
[1739390120262,6.30214231,2678.4,2678.3,0.00559994]
[1739390120466,6.36487652,2678.4,2678.3,0.00559994]
[1739390121165,12.36487652,2678.4,2678.3,0.00559994]
[1739390121566,0.80941421,2678.4,2678.3,0.00559994]
[1739390121764,2.47568,2678.4,2678.3,0.00559994]
[1739390122963,0.74666,2678.5,2678.4,0.74668]
[1739390123167,0.74664,2678.6,2678.5,0.74664]
[1739390123367,1.729,2678.7,2678.3,0.56399994]
[1739390123872,2.47561,2678.7,2678.3,0.56399994]
[1739390124068,0.74663,2678.6,2678.3,0.56399994]
[1739390124264,0.74663,2678.6,2678.5,0.74665]
[1739390124971,1.729,2678.7,2678.5,0.74665]
[1739390125169,2.47561,2678.7,2678.6,0.74662]
[1739390125472,0.74663,2678.6,2678.5,0.74664]
[1739390127471,1.729,2678.7,2678.3,0.56399994]
[1739390127673,2.4756,2678.7,2678.6,0.74662]
[1739390127870,0.7466,2678.7,2678.6,0.74662]
[1739390128170,0.75218994,2678.8,2678.7,0.74659]
[1739390129471,0.74661,2678.7,2678.6,0.74659]
[1739390129772,0.00559994,2678.8,2678.6,0.74659]
[1739390130070,0.00559994,2678.8,2678.7,0.74659]
[1739390130574,0.74642,2679.4,2679.3,0.7464]
[1739390130772,0.74642,2679.4,2679.0,1.86627]
[1739390130773,0.74635,2679.6,2679.2,1.86614]
[1739390130966,0.74635,2679.6,2679.2,0.5684]
[1739390131269,0.74649,2679.1,2679.0,0.74649]
[1739390131670,0.00559994,2679.3,2678.7,3.2078]
[1739390131871,0.7465,2679.1,2679.0,0.74649]
[1739390132172,4.93639994,2679.3,2678.7,3.2078]
[1739390132473,0.74649,2679.2,2679.1,0.74647]
[1739390133170,4.93639994,2679.3,2678.7,3.2078]
[1739390133472,0.74646,2679.2,2679.1,0.74646]
[1739390134370,3.21339994,2679.3,2679.2,0.74645]
[1739390134567,3.95982994,2679.3,2679.2,0.74645]
[1739390134769,0.00559994,2679.3,2679.2,0.74645]
[1739390135576,0.74649,2679.1,2679.0,0.74651]
[1739390135873,0.74647,2679.2,2679.1,0.74647]
[1739390136076,0.00559994,2679.3,2679.2,0.74645]
[1739390139369,0.75202994,2679.3,2679.2,0.74645]
[1739390140079,0.00559994,2679.3,2678.8,2.44817]
[1739390140279,0.74648,2679.2,2679.1,0.74647]
[1739390140579,0.75205994,2679.3,2679.2,0.74645]
[1739390140879,0.00559994,2679.3,2679.2,0.74645]
[1739390141067,0.75202994,2679.3,2679.2,0.74645]
[1739390141275,0.74653,2679.0,2678.9,0.74651]
[1739390142079,3.8099,2679.2,2678.8,0.5818]
[1739390142080,0.74654,2678.9,2678.8,0.5818]
[1739390142280,0.74657,2678.8,2678.7,0.74658]
[1739390142972,0.74657,2678.8,2678.4,5.67265]
[1739390142973,0.74653,2679.0,2678.9,0.74651]
[1739390144785,0.00559994,2679.3,2678.9,3.2078]
[1739390144978,0.75202994,2679.3,2679.2,0.74645]
[1739390145975,0.00559994,2679.3,2679.0,0.5665]
[1739390146286,0.74656,2678.9,2678.8,0.74655]
[1739390148896,1.718,2679.0,2678.9,0.74654]
[1739390149201,5.66927,2679.2,2679.1,0.74648]
[1739390149392,1.715,2679.2,2679.1,0.74648]
[1739390149595,0.00559994,2679.3,2678.9,5.07414]
[1739390149796,0.00559994,2679.3,2679.2,0.74645]
[1739390151302,0.74645,2679.2,2679.1,1.33136]
[1739390151599,1.34775,2679.2,2679.1,1.33136]
[1739390151788,0.00559994,2679.3,2679.2,0.74645]
[1739390152197,0.75202994,2679.3,2679.2,0.74645]
[1739390152695,0.00559994,2679.3,2679.2,0.74645]
[1739390157302,0.00559994,2679.3,2679.2,3.95425]
[1739390160396,0.00559994,2679.3,2679.2,7.78214989]
[1739390160793,0.00559994,2679.3,2679.2,3.95425]
[1739390161696,0.00559994,2679.3,2679.2,13.78214989]
[1739390161893,0.00559994,2679.3,2679.2,7.78214989]
[1739390162104,5.66105,2680.0,2679.9,0.74626]
[1739390162501,5.66103,2680.0,2679.9,0.74626]
[1739390162698,0.5501,2680.3,2679.9,1.86565]
[1739390162900,1.711,2680.5,2680.2,0.74618]
[1739390163100,1.711,2680.5,2680.4,0.74612]
[1739390163798,2.3104,2680.5,2680.4,0.74612]
[1739390163998,3.05649,2680.5,2680.4,0.74612]
[1739390165003,2.3104,2680.5,2680.4,0.74612]
[1739390165204,3.05649,2680.5,2680.4,0.74612]
[1739390165400,2.3104,2680.5,2680.4,0.74612]
[1739390165600,3.05649,2680.5,2680.4,0.74612]
[1739390166300,3.05649,2680.5,2680.3,0.74612]
[1739390166301,0.74613,2680.4,2680.3,0.74612]
[1739390167199,3.05651,2680.5,2680.4,0.74612]
[1739390167398,2.3104,2680.5,2680.4,0.74612]
[1739390169008,0.00556433,2680.6,2680.5,0.74609]
[1739390169306,0.00556433,2680.6,2680.5,3.95389]
[1739390169704,3.95366,2681.4,2681.3,0.74587]
[1739390170602,3.2078,2681.4,2681.3,0.74587]
[1739390170815,5.18132214,2682.0,2681.3,3.2078]
[1739390170816,2.48761726,2682.0,2681.3,3.2078]
[1739390171011,0.03092726,2682.0,2681.9,0.7457]
[1739390171813,0.03092726,2682.0,2681.7,3.21339994]
[1739390171814,0.03092726,2682.0,2681.7,0.00559994]
[1739390172001,0.74573,2681.8,2681.7,0.00559994]
[1739390172606,6.74573,2681.8,2681.7,0.00559994]
[1739390172813,0.74592,2681.2,2681.0,0.74594]
[1739390173013,3.2078,2681.4,2680.8,3.2078]
[1739390173307,3.2078,2681.4,2680.8,3.95379]
[1739390173507,0.74598,2680.9,2680.8,3.95379]
[1739390174413,0.74604,2680.7,2680.6,0.00559994]
[1739390174804,0.74603,2680.8,2680.6,0.75164994]
[1739390175004,0.74604,2680.7,2680.6,0.75165994]
[1739390175204,0.74604,2680.7,2680.6,0.00559994]
[1739390178012,3.95384,2680.7,2680.6,0.00559994]
[1739390179222,0.6013,2680.9,2680.6,3.21339994]
[1739390179223,1.34729,2680.9,2680.6,3.21339994]
[1739390179408,0.6013,2680.9,2680.6,3.21339994]
[1739390179603,0.74603,2680.8,2680.7,0.74603]
[1739390179904,0.74604,2680.7,2680.6,0.00559994]
[1739390180311,0.6013,2680.9,2680.8,0.74601]
[1739390180617,3.21339994,2681.1,2680.9,0.74595]
[1739390180618,0.74596,2681.0,2680.9,0.74595]
[1739390181306,0.00559994,2681.1,2681.0,0.74595]
[1739390181810,0.75152994,2681.1,2681.0,0.74595]
[1739390182011,0.00559994,2681.1,2681.0,0.74595]
[1739390182511,0.75152994,2681.1,2681.0,0.74595]
[1739390182713,0.00559994,2681.1,2681.0,0.74595]
[1739390185710,0.75152994,2681.1,2681.0,0.74595]
[1739390185914,0.75152994,2681.1,2680.9,3.2078]
[1739390185915,0.74598,2681.0,2680.9,0.74597]
[1739390186318,0.746,2680.9,2680.8,0.74599]
[1739390186512,0.74603,2680.8,2680.7,0.74602]
[1739390187320,3.21339994,2681.1,2680.6,3.21339994]
[1739390187519,0.746,2680.9,2680.8,0.74599]
[1739390187720,3.21339994,2681.1,2680.6,5.07853994]
[1739390187921,3.95934994,2681.1,2681.0,0.74595]
[1739390188615,0.00559994,2681.1,2681.0,0.74595]
[1739390188809,0.00559994,2681.1,2681.0,1.31085]
[1739390189020,3.2078,2681.4,2681.3,0.74587]
[1739390189214,3.2078,2681.4,2681.1,1.86482]
[1739390189215,0.74582,2681.5,2681.4,0.74581]
[1739390189422,0.5937,2681.6,2681.2,3.2078]
[1739390189719,0.74577,2681.7,2681.6,0.74576]
[1739390189915,1.703,2681.9,2681.5,3.2078]
[1739390190121,2.44871,2681.9,2681.8,0.74571]
[1739390190315,1.33939,2682.0,2681.9,0.7457]
[1739390190623,0.74566,2682.1,2682.0,0.74565]
[1739390190921,1.704,2682.2,2681.9,0.74568]
[1739390191225,1.704,2682.2,2681.6,1.1483]
[1739390191523,0.74571,2681.9,2681.8,0.74572]
[1739390192019,3.2078,2682.1,2681.6,1.1483]
[1739390192221,0.74572,2681.9,2681.6,1.1483]
[1739390192423,0.74569,2682.0,2681.9,0.74569]
[1739390192722,0.7457,2682.0,2681.6,1.1483]
[1739390192915,1.701,2682.3,2681.6,6.22054]
[1739390193220,0.74566,2682.1,2682.0,0.74566]
[1739390193821,0.74564,2682.2,2682.0,0.74566]
[1739390194122,0.74563,2682.2,2682.1,0.74564]
[1739390194317,0.74565,2682.1,2681.6,4.3561]
[1739390194524,1.699,2682.3,2681.6,4.3561]
[1739390194721,1.699,2682.3,2682.0,0.74567]
[1739390194722,0.74567,2682.1,2682.0,0.74567]
[1739390195127,0.74568,2682.0,2681.9,0.74568]
[1739390196223,0.74572,2681.9,2681.8,0.74571]
[1739390196819,3.2078,2682.0,2681.6,0.5834]
[1739390197015,3.56326,2681.9,2681.1,0.5659]
[1739390197323,0.7459,2681.2,2681.1,1.31311]
[1739390197526,0.74596,2681.1,2681.0,0.74592]
[1739390197828,0.746,2680.9,2680.8,0.74598]
[1739390198012,0.746,2680.9,2680.8,0.74601]
[1739390198218,2.447,2680.9,2680.8,0.74601]
[1739390198620,0.74604,2680.7,2680.4,0.7461]
[1739390198819,0.74604,2680.7,2680.3,0.5672]
[1739390199124,0.74604,2680.7,2680.0,3.8013]
[1739390199423,0.74604,2680.7,2680.4,0.7461]
[1739390200424,0.74604,2680.7,2680.5,0.74609]
[1739390200726,0.74604,2680.7,2680.4,0.7461]
[1739390201029,0.74604,2680.7,2680.6,0.75165994]
[1739390201328,2.2533,2680.8,2680.6,0.00559994]
[1739390201628,0.74604,2680.7,2680.6,0.00559994]
[1739390202025,1.701,2680.8,2680.6,0.00559994]
[1739390202219,0.5514,2681.2,2680.9,0.74597]
[1739390202520,3.2078,2681.4,2680.6,3.21339994]
[1739390202521,2.44894,2681.1,2680.6,3.21339994]
[1739390202722,1.703,2681.1,2680.7,0.5784]
[1739390202919,4.9108,2681.1,2680.7,0.5784]
[1739390203116,0.74604,2680.7,2680.6,0.00559994]
[1739390203424,0.74604,2680.7,2680.6,0.75165994]
[1739390203627,0.74604,2680.7,2680.6,0.00559994]
[1739390204333,0.74604,2680.7,2680.6,0.75165994]
[1739390205130,5.65982,2680.8,2680.7,0.74604]
[1739390205425,1.1313,2681.0,2680.6,3.21339994]
[1739390205426,0.5525,2681.0,2680.6,3.21339994]
[1739390205631,0.74598,2680.9,2680.8,0.74599]
[1739390206726,4.9148,2681.1,2680.6,3.21339994]
[1739390206929,5.66073,2681.1,2681.0,0.74595]
[1739390207432,3.2078,2681.1,2681.0,0.74595]
[1739390207928,3.95373,2681.1,2681.0,0.74595]
[1739390208533,0.74593,2681.1,2681.0,0.74595]
[1739390208733,4.9138,2681.4,2680.8,0.5795]
[1739390209135,0.74598,2680.9,2680.8,1.3255]
[1739390209329,0.74595,2681.1,2681.0,0.74594]
[1739390209635,0.74597,2681.0,2680.9,0.74597]
[1739390210137,4.9138,2681.4,2680.8,0.5795]
[1739390210322,4.9138,2681.4,2681.0,0.74593]
[1739390210527,4.9138,2681.4,2681.1,0.74591]
[1739390210528,0.74592,2681.2,2681.1,0.74591]
[1739390211532,3.2078,2681.4,2680.8,0.5795]
[1739390211832,0.74591,2681.2,2681.1,0.74589]
[1739390212042,0.74596,2681.1,2681.0,0.74595]
[1739390212536,1.86472,2681.3,2680.8,0.5795]
[1739390212737,0.74598,2680.9,2680.8,0.5795]
[1739390214037,0.74598,2680.9,2680.8,1.32551]
[1739390215931,0.74598,2680.9,2680.8,0.5795]
[1739390216132,0.74604,2680.7,2680.6,0.00559994]
[1739390220141,0.74704,2680.7,2680.6,0.00559994]
[1739390223032,2.44504,2680.7,2680.6,0.75165994]
[1739390224050,1.701,2680.7,2680.6,0.75165994]
[1739390224244,0.001,2680.7,2680.6,3.95945994]
[1739390225135,1.7,2681.1,2680.6,7.06938034]
[1739390225334,1.7,2681.1,2681.0,0.74595]
[1739390225835,0.74581,2681.5,2681.0,0.5662]
[1739390226038,5.6556,2681.6,2681.5,0.74581]
[1739390226733,5.6556,2681.6,2681.1,1.86482]
[1739390226734,3.2078,2681.9,2681.2,3.2078]
[1739390226934,0.74577,2681.7,2681.6,0.74577]
[1739390227335,1.703,2681.8,2681.6,0.74577]
[1739390227535,0.74576,2681.7,2681.2,3.2078]
[1739390227741,1.703,2681.8,2681.4,0.74582]
[1739390227937,3.2078,2681.6,2681.0,0.5662]
[1739390228240,3.2078,2681.3,2680.6,3.21339994]
[1739390228541,0.74597,2681.0,2680.9,0.74598]
[1739390228939,2.2669,2681.2,2680.6,3.21339994]
[1739390229134,0.74596,2681.0,2680.9,0.74598]
[1739390229444,0.74595,2681.1,2680.6,3.21339994]
[1739390229641,0.74596,2681.0,2680.9,0.74597]
[1739390229936,2.2669,2681.2,2680.6,3.21339994]
[1739390230137,2.2669,2681.2,2680.7,0.74604]
[1739390230339,0.74603,2680.8,2680.7,0.74604]
[1739390230739,0.746,2680.9,2680.7,0.74601]
[1739390231140,0.74596,2681.0,2680.9,0.74596]
[1739390232045,3.01282,2681.2,2681.1,0.74593]
[1739390232547,0.74595,2681.1,2681.0,0.74595]
[1739390232842,2.2669,2681.2,2680.8,0.746]
[1739390232843,0.746,2680.9,2680.8,0.746]
[1739390233234,2.2669,2681.2,2680.6,3.79049994]
[1739390233235,2.2669,2681.2,2680.7,1.8651]
[1739390233543,3.01281,2681.2,2681.1,0.74593]
[1739390233840,3.01281,2681.2,2680.7,1.8651]
[1739390233841,2.2669,2681.2,2680.7,1.8651]
[1739390234037,3.01281,2681.2,2681.1,0.74593]
[1739390235841,2.2669,2681.2,2680.7,1.8651]
[1739390236037,0.74595,2681.1,2681.0,0.74593]
[1739390236433,2.2669,2681.2,2680.6,3.79049994]
[1739390236636,0.74602,2680.8,2680.7,0.74601]
[1739390236950,1.86482,2681.1,2680.6,3.21339994]
[1739390236951,0.746,2680.9,2680.8,0.74598]
[1739390237644,0.74603,2680.8,2680.7,0.74602]
[1739390238449,0.74604,2680.7,2680.6,3.95943994]
[1739390238642,2.45404,2680.7,2680.6,3.95943994]
[1739390239240,1.708,2680.7,2680.6,3.95943994]
[1739390239642,2.45404,2680.7,2680.6,3.95943994]
[1739390239846,1.708,2680.7,2680.6,3.95943994]
[1739390240938,2.45404,2680.7,2680.6,0.75163994]
[1739390241343,2.45404,2680.7,2680.6,0.00559994]
[1739390242057,5.66184,2680.7,2680.6,0.00559994]
[1739390244052,2.45404,2680.7,2680.6,0.00559994]
[1739390244248,5.66184,2680.7,2680.6,0.00559994]
[1739390244553,2.45404,2680.7,2680.6,0.75165994]
[1739390245253,0.74603,2680.8,2680.7,0.74601]
[1739390245451,0.74604,2680.7,2680.6,0.75164994]
[1739390245654,3.95384,2680.7,2680.6,0.00559994]
[1739390245948,4.53344,2680.7,2680.6,0.00559994]
[1739390246658,1.32564,2680.7,2680.6,0.00559994]
[1739390247156,4.53344,2680.7,2680.6,0.00559994]
[1739390248356,1.32564,2680.7,2680.6,0.00559994]
[1739390248745,3.02664,2680.7,2680.6,0.75165994]
[1739390248946,3.02764,2680.7,2680.6,0.75165994]
[1739390249146,2.44804,2680.7,2680.6,0.75165994]
[1739390249557,0.74604,2680.7,2680.6,0.75165994]
[1739390249756,2.44604,2680.7,2680.6,0.75165994]
[1739390253058,5.65384,2680.7,2680.6,0.00559994]
[1739390253459,2.44604,2680.7,2680.6,0.00559994]
[1739390254146,2.44604,2680.7,2680.6,0.75165994]
[1739390254662,2.44604,2680.7,2680.6,0.00559994]
[1739390255359,5.65384,2680.7,2680.6,0.00559994]
[1739390255956,2.44604,2680.7,2680.6,0.00559994]
[1739390256355,2.44604,2680.7,2680.6,0.75165994]
[1739390257255,2.44604,2680.7,2680.6,0.00559994]
[1739390257856,5.65384,2680.7,2680.6,0.00559994]
[1739390260261,6.09444494,2680.7,2680.6,0.00559994]
[1739390260964,6.15711526,2680.7,2680.6,0.00559994]
[1739390261770,6.15711439,2680.7,2680.6,0.00559994]
[1739390262265,6.09444494,2680.7,2680.6,0.00559994]
[1739390262463,6.15711222,2680.7,2680.6,0.00559994]
[1739390262865,6.09444494,2680.7,2680.6,0.00559994]
[1739390264574,6.15711251,2680.7,2680.6,0.00559994]
[1739390265261,6.09444494,2680.7,2680.6,0.00559994]
[1739390265461,6.15711384,2680.7,2680.6,0.00559994]
[1739390265665,2.94931384,2680.7,2680.6,0.00559994]
[1739390265856,2.88664494,2680.7,2680.6,0.00559994]
[1739390266262,5.65384,2680.7,2680.6,0.00559994]
[1739390266666,6.20164,2680.7,2680.6,0.00559994]
[1739390266865,6.64224494,2680.7,2680.6,0.00559994]
[1739390267067,6.70491295,2680.7,2680.6,0.00559994]
[1739390268470,6.64224494,2680.7,2680.6,0.00559994]
[1739390269063,3.43444494,2680.7,2680.6,0.00559994]
[1739390269264,6.20164,2680.7,2680.6,0.00559994]
[1739390269470,0.44060494,2680.8,2680.6,0.00559994]
[1739390269770,1.694,2680.7,2680.6,0.75165994]
[1739390270366,0.44060494,2680.9,2680.6,0.00559994]
[1739390270572,3.2078,2681.0,2680.6,0.00559994]
[1739390270573,0.44060494,2681.0,2680.7,3.28547662]
[1739390270769,0.44060494,2681.0,2680.9,0.74598]
[1739390271275,0.74592,2681.2,2681.1,0.74593]
[1739390271464,1.693,2681.3,2681.2,0.7459]
[1739390271670,0.74585,2681.4,2681.3,0.74587]
[1739390272767,1.693,2681.6,2680.8,6.22487]
[1739390272970,0.74588,2681.3,2681.2,0.74587]
[1739390273769,0.74592,2681.2,2681.1,0.7459]
[1739390273971,0.74592,2681.2,2680.9,0.74596]
[1739390273972,0.74598,2681.0,2680.9,0.74596]
[1739390274168,0.74598,2680.9,2680.8,0.574]
[1739390274368,0.74598,2680.9,2680.8,1.32001]
[1739390274967,1.693,2681.0,2680.9,0.74598]
[1739390275467,1.693,2681.0,2680.9,1.32438]
[1739390275670,1.693,2681.2,2680.9,0.5784]
[1739390275869,2.43891,2681.2,2681.1,0.74593]
[1739390276175,1.693,2681.2,2681.1,0.74593]
[1739390276570,2.4389,2681.2,2681.1,0.74593]
[1739390277473,2.4399,2681.2,2681.1,0.74593]
[1739390279377,1.694,2681.2,2681.0,0.559]
[1739390279671,0.74593,2681.1,2681.0,0.559]
[1739390279874,0.74593,2681.1,2681.0,1.30495]
[1739390281167,1.694,2681.2,2681.0,0.559]
[1739390281363,0.001,2681.2,2681.1,0.74593]
[1739390282579,0.7469,2681.2,2681.1,0.74593]
[1739390282779,0.001,2681.2,2681.1,0.74593]
[1739390286776,0.001,2681.2,2681.0,3.7668]
[1739390287087,0.001,2681.2,2681.0,1.30494]
[1739390287088,0.74592,2681.1,2681.0,1.30494]
[1739390287486,3.03202,2681.1,2681.0,0.74594]
[1739390287779,2.2861,2681.1,2680.8,0.574]
[1739390288081,0.74604,2680.7,2680.6,0.00559994]
[1739390288474,0.74604,2680.7,2680.6,0.75165994]
[1739390289080,0.74604,2680.7,2680.6,0.00559994]
[1739390289381,0.74603,2680.8,2680.7,0.74603]
[1739390289579,1.693,2680.8,2680.7,0.74603]
[1739390289881,0.74597,2681.0,2680.9,0.74597]
[1739390290183,0.74597,2681.0,2680.7,1.32683]
[1739390290184,0.74601,2680.8,2680.7,1.32683]
[1739390290384,0.74601,2680.8,2680.7,0.5808]
[1739390290676,0.74604,2680.7,2680.6,0.00559994]
[1739390292781,0.06267163,2680.7,2680.1,0.74619]
[1739390292983,0.74624,2680.0,2679.9,0.74625]
[1739390293483,0.74623,2680.0,2679.8,0.74627]
[1739390293678,0.74623,2680.0,2679.9,0.74626]
[1739390294592,0.74626,2680.0,2679.8,0.74627]
[1739390294980,0.74626,2680.0,2679.7,3.21339994]
[1739390295288,1.693,2680.1,2679.7,3.21339994]
[1739390295484,2.43922,2680.1,2680.0,0.74623]
[1739390295984,0.74623,2680.0,2679.9,0.74624]
[1739390296186,0.5636,2680.0,2679.7,3.21339994]
[1739390296379,1.30984,2680.0,2679.9,0.74626]
[1739390296787,0.5636,2680.0,2679.9,0.74626]
[1739390297785,1.30983,2680.0,2679.9,0.74626]
[1739390298690,0.74627,2679.9,2679.8,0.74626]
[1739390298887,0.74629,2679.8,2679.7,0.00559994]
[1739390299085,1.34739,2679.8,2679.7,0.00559994]
[1739390300290,1.34739,2679.8,2679.7,0.75190994]
[1739390300587,1.34739,2679.8,2679.7,0.00559994]
[1739390301889,1.34739,2679.8,2679.1,2.41301]
[1739390301890,0.6011,2679.8,2679.1,0.5468]
[1739390302099,0.74644,2679.3,2679.2,0.74643]
[1739390302886,0.74645,2679.2,2679.1,1.29326]
[1739390303293,0.74645,2679.2,2679.1,0.5468]
[1739390303496,0.74645,2679.2,2679.1,1.29328]
[1739390304193,3.28547662,2679.3,2679.0,3.21339994]
[1739390304395,0.74648,2679.2,2679.1,0.74647]
[1739390304693,0.74648,2679.1,2679.0,3.95988994]
[1739390305493,0.74648,2679.1,2679.0,3.21339994]
[1739390305692,0.74648,2679.1,2679.0,0.00559994]
[1739390308487,3.95428,2679.1,2679.0,0.00559994]
[1739390310795,5.64828,2679.1,2679.0,0.00559994]
[1739390311499,0.74648,2679.1,2679.0,0.75210994]
[1739390311799,2.44048,2679.1,2679.0,0.00559994]
[1739390311993,5.64828,2679.1,2679.0,0.00559994]
[1739390312495,5.64828,2679.1,2678.4,0.5835]
[1739390312496,0.74665,2678.5,2678.4,0.5835]
[1739390312698,2.44065,2678.5,2678.4,0.5835]
[1739390312894,0.74668,2678.4,2678.3,0.5646]
[1739390313084,0.74668,2678.4,2678.2,1.31612]
[1739390313085,0.7467,2678.3,2678.2,1.31612]
[1739390315594,0.7467,2678.4,2678.3,0.74669]
[1739390315998,0.00559994,2678.5,2678.2,0.5694]
[1739390316298,1.694,2679.0,2678.4,3.95448]
[1739390316498,2.44054,2679.0,2678.9,0.74654]
[1739390316700,0.74658,2678.8,2678.7,0.74657]
[1739390316888,3.28547662,2678.8,2678.5,0.5766]
[1739390317105,0.74662,2678.6,2678.5,1.32323]
[1739390317486,3.29107656,2678.8,2678.5,0.5766]
[1739390317691,0.00559994,2678.8,2678.7,0.74659]
[1739390317895,1.69959994,2678.8,2678.7,0.74659]
[1739390318097,2.44616994,2678.8,2678.7,0.74659]
[1739390318296,2.44616994,2678.8,2678.6,0.5818]
[1739390318297,0.74659,2678.7,2678.6,1.32841]
[1739390318796,1.69959994,2678.8,2678.6,0.5818]
[1739390318997,2.44618994,2678.8,2678.7,0.74659]
[1739390319197,0.74659,2678.7,2678.6,1.3284]
[1739390319797,0.74659,2678.7,2678.6,0.5818]
[1739390320698,0.74662,2678.6,2678.5,0.5766]
[1739390321800,0.74662,2678.6,2678.5,1.32325]
[1739390322105,0.74662,2678.6,2678.5,0.5766]
[1739390322301,0.74665,2678.5,2678.4,0.74667]
[1739390322501,0.74668,2678.4,2678.3,3.95448]
[1739390324107,0.74667,2678.5,2678.4,0.74665]
[1739390324508,0.74663,2678.7,2678.6,0.7466]
[1739390324705,0.74666,2678.6,2678.5,0.74663]
[1739390325801,0.74668,2678.5,2678.4,0.74666]
[1739390327304,5.15204662,2678.6,2678.2,1.91351]
[1739390327514,0.7467,2678.3,2678.2,1.91351]